Cogmind - Beta 12 @@@ ROGUE MODE // 2023.04.14 @ 19:50:21 Player: Zellbot Result: Destroyed by D-53 Grenadier with Mini Grenade Launcher Performance ------------- Evolutions (0) 0 Regions Visited (4) 800 Robots Destroyed (16) 80 Value Destroyed (434) 434 Prototype IDs (0) 0 Alien Tech Used (0) 0 Bonus (0) 0 TOTAL SCORE: 1314 Bonus ------- None Cogmind --------- Core Integrity 0/250 Matter 300/300 Energy 100/100 System Corruption 0% Temperature Cool (0) Movement Core (350) Ox6 Location -9/Mines Parts ------- > --- POWER (1) -------- (None) > --- PROPULSION (2) --- (None) > --- UTILITY (2) ------ Large Storage Unit Targeting Computer > --- WEAPON (2) ------- (None) > --- INVENTORY (15) --- Ion Engine Light Treads Light Treads Wheel Heat Sink Medium Storage Unit Makeshift Terrain Scanner Makeshift Transmission Jammer Makeshift Cloaking Device Medium Laser Spread Laser Spread Laser Shotgun Peak State ------------ > --- POWER ------------ Ion Engine > --- PROPULSION ------- Compact Wheel Compact Wheel > --- UTILITY ---------- Large Storage Unit Targeting Computer > --- WEAPON ----------- Spread Laser Spread Laser > --- INVENTORY -------- Ion Engine Light Treads Light Treads Wheel Heat Sink Medium Storage Unit Makeshift Terrain Scanner Makeshift Transmission Jammer Makeshift Cloaking Device Medium Laser Spread Laser Spread Laser Shotgun [Rating: 12] Favorites ----------- Power Ion Engine Engine Ion Engine Propulsion Compact Wheel Wheel Compact Wheel Utility Large Storage Unit Storage Large Storage Unit Processor Targeting Computer Protection Core Shielding Weapon Spread Laser Energy Gun Spread Laser Build | -11 -10 -10 -10 -9 ------- Run | Jun Mat Min Exi Min Slots Evolved . | . . . . . Power . | . . . . . Propulsion . | . . . . . Utility . | . . . . . Weapon . | . . . . . Parts Attached 15 | 6 8 1 . . Power 2 | 1 1 . . . Engine 2 | 1 1 . . . Core . | . . . . . Reactor . | . . . . . Propulsion 5 | 2 2 1 . . Treads . | . . . . . Leg . | . . . . . Wheel 5 | 2 2 1 . . Hover . | . . . . . Flight . | . . . . . Utility 4 | 1 3 . . . Device . | . . . . . Storage 2 | 1 1 . . . Processor 1 | . 1 . . . Hackware . | . . . . . Protection 1 | . 1 . . . Artifact . | . . . . . Weapon 4 | 2 2 . . . Energy Gun 4 | 2 2 . . . Energy Cannon . | . . . . . Ballistic Gun . | . . . . . Ballistic Cannon . | . . . . . Launcher . | . . . . . Special Weapon . | . . . . . Impact Weapon . | . . . . . Slashing Weapon . | . . . . . Piercing Weapon . | . . . . . Special Melee Weapon . | . . . . . Unidentified Prototypes . | . . . . . Parts Lost 7 | . 2 1 . 4 Power 2 | . 1 . . 1 Propulsion 3 | . . 1 . 2 Utility . | . . . . . Weapon 2 | . 1 . . 1 Highest Loss Streak 4 | . 1 1 . 4 To Critical Strikes . | . . . . . Average Slot Usage (%) 98 | . 97 99 100 90 Engine 13 | . 13 14 14 11 Wheel 27 | . 28 27 28 25 Storage 14 | . 14 14 14 14 Processor 10 | . 3 14 14 14 Protection 3 | . 8 . . . Energy Gun 27 | . 27 28 28 23 Naked Turns . | . . . . . Heaviest Build 32 | 13 32 31 31 31 Greatest Support 32 | 26 26 32 32 32 Greatest Overweight (x) 6 | 1 1 1 . 6 Average Overweight (x) . | . . . . . Largest Inventory Capacity 15 | 8 15 15 15 15 Average Capacity 12 | 7 10 15 15 15 Most Carried 13 | 3 11 11 13 13 Average Carried 9 | 1 7 10 10 13 Final Capacity 15 | 8 15 15 15 15 Final Carried 13 | 3 11 10 13 13 Class Distribution -------------------- 100% | Mutant Dominant Class ---------------- Mutant | -10/Materials Mutant | -10/Mines Mutant | -10/Exiles Mutant | -9/Mines Resources | -11 -10 -10 -10 -9 ----------- Run | Jun Mat Min Exi Min Matter Collected 334 | 213 117 4 . . Remotely . | . . . . . Salvage Created 385 | . 217 168 . . Parts 22 | . 6 16 . . Haulers Intercepted . | . . . . . Recyclers Shooed . | . . . . . Parts Field Recycled . | . . . . . Retrieved Matter . | . . . . . Parts Self-Destructed . | . . . . . Prevented . | . . . . . Kills | -11 -10 -10 -10 -9 ------- Run | Jun Mat Min Exi Min Combat Hostiles Destroyed 15 | . 8 7 . . Guns 14 | . 7 7 . . Classes Destroyed 3 | . 3 . . . Operator 1 | . 1 . . . Swarmer 6 | . 3 3 . . Grunt 9 | . 5 4 . . Best Kill Streak 3 | . 3 3 . . Combat Bots Only 3 | . 3 3 . . Max Kills in Single Turn 1 | . 1 1 . . Gunslinging . | . . . . . Exploded . | . . . . . Melee . | . . . . . Uniques/NPCs Destroyed . | . . . . . Combat | -11 -10 -10 -10 -9 -------- Run | Jun Mat Min Exi Min Damage Taken 836 | . 357 181 . 298 Core 268 | . 49 58 . 161 Absorbed by Shields . | . . . . . Redirected to Shielding 7 | . 7 . . . Core Remaining (%) 100 | 100 . . . . Volleys Fired 37 | . 25 12 . . Largest 2 | . 2 2 . . Hottest 130 | . 130 130 . . Shots Fired 68 | . 44 24 . . Gun 68 | . 44 24 . . Cannon . | . . . . . Launcher . | . . . . . Special . | . . . . . Kinetic . | . . . . . Thermal 68 | . 44 24 . . Explosive . | . . . . . Electromagnetic . | . . . . . Robot Hit Streak 10 | . 10 7 . . Robot Miss Streak 6 | . 4 6 . . Penetration Max . | . . . . . Secondary Targets 1 | . . 1 . . Max Gunslinging Chain 1 | . . 1 . . Shots Hit Robots 53 | . 31 22 . . Core Hits 64 | . 33 31 . . Critical Kills . | . . . . . Critical Parts Destroyed . | . . . . . Critical Strikes 2 | . 2 . . . Burn 2 | . 2 . . . Melee Attacks . | . . . . . Impact . | . . . . . Slashing . | . . . . . Piercing . | . . . . . Sneak Attacks . | . . . . . Combat Hostiles . | . . . . . Follow-up Attacks . | . . . . . Damage Inflicted 664 | . 382 282 . . Guns 651 | . 369 282 . . Cannons . | . . . . . Explosions . | . . . . . Melee . | . . . . . Ramming 13 | . 13 . . . Kinetic . | . . . . . Thermal 651 | . 369 282 . . Explosive . | . . . . . Electromagnetic . | . . . . . Impact . | . . . . . Slashing . | . . . . . Piercing . | . . . . . Highest Corruption . | . . . . . Average Corruption . | . . . . . Corruption Purged . | . . . . . Corruption Blocked . | . . . . . Overload Shots . | . . . . . Overflow Damage . | . . . . . Projectiles . | . . . . . Explosions . | . . . . . Melee . | . . . . . Knockbacks . | . . . . . Impact . | . . . . . Kinetic . | . . . . . Secondary . | . . . . . Self-Inflicted Damage 6 | . 6 . . . Shots . | . . . . . Rammed 1 | . 1 . . . Targets Rammed 1 | . 1 . . . Kicked . | . . . . . Crushed . | . . . . . Highest Temperature 350 | . 306 350 . . Average Temperature 130 | . 117 151 . . Received Heat Transfer 281 | . 189 72 . 20 Effects 2 | . 1 1 . . Energy Bleed 1 | . 1 . . . Interference 1 | . . 1 . . Siege Activations . | . . . . . Robots Corrupted . | . . . . . Combat Hostiles . | . . . . . Parts Fried . | . . . . . Impact Corruptions . | . . . . . Robots Melted 1 | . 1 . . . Combat Hostiles 1 | . 1 . . . Parts Melted 3 | . 3 . . . Heat Transferred 1218 | . 863 355 . . Parts Sabotaged . | . . . . . Parts Stolen . | . . . . . Parts Stripped . | . . . . . Power Chain Reactions . | . . . . . Missiles Intercepted . | . . . . . Alert | -11 -10 -10 -10 -9 ------- Run | Jun Mat Min Exi Min Peak Influence 190 | . 190 186 . 15 Initial 11 | . . 11 . . Average 82 | . 63 140 . 1 Maximum Alert Level . | . . . . . Low Security (%) 100 | 100 100 100 . 100 Level 1 . | . . . . . Level 2 . | . . . . . Level 3 . | . . . . . Level 4 . | . . . . . Level 5 . | . . . . . High Security . | . . . . . Max Security . | . . . . . Squads Dispatched 2 | . 2 . . . Investigation . | . . . . . Extermination . | . . . . . Reinforcement 2 | . 2 . . . Assault . | . . . . . Garrison . | . . . . . Intercept . | . . . . . Searches Triggered . | . . . . . Construction Impeded . | . . . . . Haulers Reinforced . | . . . . . Active Scanning Responses . | . . . . . Cargo Convoy Interrupts . | . . . . . Stealth | -11 -10 -10 -10 -9 --------- Run | Jun Mat Min Exi Min Distress Signals . | . . . . . Communications Jammed . | . . . . . Distress Signals . | . . . . . Times Spotted 28 | . 15 7 . 6 Peak Tracking Total 5 | . 3 3 . 5 Tactical Retreats . | . . . . . Traps | -11 -10 -10 -10 -9 ------- Run | Jun Mat Min Exi Min Traps Triggered . | . . . . . Indirectly . | . . . . . Trap Hack Attempts . | . . . . . Triggered . | . . . . . Disarmed . | . . . . . Reprogrammed . | . . . . . Reused . | . . . . . Traps Extracted . | . . . . . Installed . | . . . . . Triggered . | . . . . . Machines | -11 -10 -10 -10 -9 ---------- Run | Jun Mat Min Exi Min Machines Disabled . | . . . . . Max in Single Turn . | . . . . . Machines Repaired . | . . . . . Machines Sabotaged . | . . . . . Overloaded Fab Kills . | . . . . . Hacking | -11 -10 -10 -10 -9 --------- Run | Jun Mat Min Exi Min Machines Accessed 3 | . 2 . 1 . Terminals 1 | . 1 . . . Fabricators . | . . . . . Repair Stations 1 | . 1 . . . Recycling Units . | . . . . . Scanalyzers . | . . . . . Garrison Access . | . . . . . Total Hacks 7 | . 4 . 3 . Successful 3 | . . . 3 . Failed 4 | . 4 . . . Catastrophic . | . . . . . Database Lockouts . | . . . . . Manual . | . . . . . Terminals 2 | . 2 . . . Fabricators . | . . . . . Repair Stations 2 | . 2 . . . Recycling Units . | . . . . . Scanalyzers . | . . . . . Garrison Access . | . . . . . Terminal Hacks 3 | . . . 3 . Record 3 | . . . 3 . Fabricator Hacks . | . . . . . Repair Station Hacks . | . . . . . Recycling Unit Hacks . | . . . . . Scanalyzer . | . . . . . Garrison Access Hacks . | . . . . . Unauthorized Hacks . | . . . . . Terminals . | . . . . . Fabricators . | . . . . . Repair Stations . | . . . . . Recycling Units . | . . . . . Scanalyzers . | . . . . . Garrison Access . | . . . . . Data Cores Recovered . | . . . . . Used . | . . . . . Hacking Detections 2 | . 2 . . . Full Trace Events . | . . . . . Feedback Events . | . . . . . Feedback Blocked . | . . . . . Robot Schematics Acquired . | . . . . . Robots Built . | . . . . . Authchips . | . . . . . Time . | . . . . . Total Robot Build Rating . | . . . . . Part Schematics Acquired . | . . . . . Parts Built . | . . . . . Authchips . | . . . . . Time . | . . . . . Total Part Build Rating . | . . . . . Parts Repaired . | . . . . . Time . | . . . . . Parts Recycled . | . . . . . Recycled Matter . | . . . . . Retrieved Matter . | . . . . . Retrieved Components . | . . . . . Parts Scanalyzed . | . . . . . Part Schematics Acquired . | . . . . . Parts Damaged . | . . . . . Bothacking | -11 -10 -10 -10 -9 ------------ Run | Jun Mat Min Exi Min Used RIF Installer . | . . . . . Robots Hacked . | . . . . . Non-combat . | . . . . . Combat . | . . . . . Robot Hacks Applied . | . . . . . Relay Couplers Released . | . . . . . Fabnet Peak Effective % . | . . . . . Robots Rewired 3 | . . . 3 . Allies Hacked . | . . . . . Hacks Repelled . | . . . . . Allies | -11 -10 -10 -10 -9 -------- Run | Jun Mat Min Exi Min Total Allies 5 | . . . 3 2 Largest Group 5 | . . . 3 5 Highest-Rated Group 69 | . . . 24 69 Highest-Rated Ally 31 | . . . 8 31 Total Orders . | . . . . . Ally Attacks 3 | . . . . 3 Total Damage 21 | . . . . 21 Kills . | . . . . . Allies Corrupted . | . . . . . Allies Melted . | . . . . . Intel | -11 -10 -10 -10 -9 ------- Run | Jun Mat Min Exi Min Robot Analysis Total . | . . . . . Derelict Logs Recovered . | . . . . . Drone Launches . | . . . . . Drone Recoveries . | . . . . . Exploration | -11 -10 -10 -10 -9 ------------- Run | Jun Mat Min Exi Min Turns Passed 1743 | 63 659 383 582 56 Spaces Moved 1553 | 55 555 331 559 53 Core 9 | 8 . . . 1 Treads . | . . . . . Legs . | . . . . . Wheels 1544 | 47 555 331 559 52 Hover . | . . . . . Flight . | . . . . . Fastest Speed 50 | 50 90 100 100 100 Average Speed 98 | 86 94 102 100 105 Slowest Speed 350 | 100 105 115 100 350 Overloaded Moves . | . . . . . Propulsion Burnouts . | . . . . . Robots Hopped . | . . . . . Cave-ins Triggered . | . . . . . Exploration Rate (%) 55 | 4 89 71 91 21 Regions Visited 4 Branch Regions 3 Pre-discovered Areas 1 | . . . 1 . Known Exits Taken . | . . . . . Unknown Exits Taken 4 | 1 1 1 1 . Scrap Searched . | . . . . . Spaces Dug . | . . . . . Terrain Destroyed . | . . . . . Melee . | . . . . . Projectile . | . . . . . AOE . | . . . . . Terrain Rammed . | . . . . . Walls Destroyed . | . . . . . Machines Disabled . | . . . . . Actions | -11 -10 -10 -10 -9 --------- Run | Jun Mat Min Exi Min Total 1695 | 67 645 349 581 53 Wait 64 | 4 47 6 7 . Move 1549 | 54 554 330 558 53 Hop . | . . . . . Pick Up 13 | 3 7 . 3 . Fast Attach 10 | 6 4 . . . Attach 2 | . 1 1 . . Detach 1 | . 1 . . . Swap 3 | . 3 . . . Drop 2 | . 2 . . . Fire 37 | . 25 12 . . Melee . | . . . . . Ram 1 | . 1 . . . Kick . | . . . . . Crush . | . . . . . Escape Stasis . | . . . . . Rewire 13 | . . . 13 . Trap . | . . . . . Miscellaneous . | . . . . . Route ------- -11/Junkyard -10/Materials (discovered 3 exits: [*Mat x2] / [*Min]) -10/Mines (discovered 2 exits: [*Mat] / *Exi) -10/Exiles -9/Mines History --------- Turn | Location | Event 2 | -11/Junkyard | Discovered new exit (range 16) 64 | -11/Junkyard | Entered Materials 219 | -10/Materials | Discovered new exit (range 4) 255 | -10/Materials | Discovered new exit (range 16) 312 | -10/Materials | Build established: Mutant 448 | -10/Materials | Discovered new exit (range 16) 723 | -10/Materials | Entered Mines 887 | -10/Mines | Discovered new exit (range 7) 1005 | -10/Mines | Found a hidden stash of uninstalled traps 1102 | -10/Mines | Deemed a non-threat by the Exiles lab entrance 1102 | -10/Mines | Discovered new exit (range 5) 1106 | -10/Mines | Entered Exiles 1106 | -10/Exiles | Found Exiles lab destroyed 1356 | -10/Exiles | Learned location of Zion (-7) 1668 | -10/Exiles | Discovered new exit (range 10) 1688 | -10/Exiles | Entered Mines 1688 | -9/Mines | Accompanied by 3 allies 1689 | -9/Mines | Assembled infested the area 1716 | -9/Mines | Met a Derelict bent on vengeance 1730 | -9/Mines | Found a damaged Exp. Sensor Array with a note attached 1739 | -9/Mines | Core integrity fell below 50% 1743 | -9/Mines | Core integrity fell below 20% 1744 | -9/Mines | Destroyed by D-53 Grenadier with Mini Grenade Launcher Last Messages --------------- 01716_ D-53 Grenadier unfolds itself. 01723_ 0F-5RU(g) destroyed. 01729_ The unstable cave ceiling collapses. 01730_ Spread Laser destroyed. 01730_ A damaged part is partially visible under some rubble. There's a note attached: "Everyone keeps telling us we should avoid high-traffic areas because that's where patrols are more likely to show up, but that doesn't do us much good if we can't spot those areas until they're on top of us... With this we can! Deliver it to Megawrench for repairs then we'll never be afraid of an ambush while sneaking around Materials again, ha." 01731_ Spread Laser severed. 01732_ Ion Engine destroyed. 01736_ as-07405 destroyed. 01736_ as-33813 destroyed. 01737_ The unstable cave ceiling collapses. 01738_ as-23385 destroyed. 01738_ Com. Wheel destroyed. 01742_ The unstable cave ceiling collapses. 01743_ as-92373 destroyed. Map ----- +----------------------------------------------------+ | ???????????????????????# "###????????????????????? | | ???????????????????????#"%" #????????????????????? | | ??????????????????????## " ????????????????????? | | ??????????????????????# ?????????????????????? | | ??????????????????????? ?????????????????????? | | ???????????????????????? ?????????????????????? | | ?????????????????????#### ####??????????????????? | | ?????????????????????? # #??????????????????? | | ??????????????????????? ##?????????????????? | | ???????????????????????# ##????????????????? | | ???????????????????????## #????????????????? | | ??????????????????????## % #????????????????? | | ??????????????????????# = ###??????????????? | | ??????????????????????# %* ##?????????????? | | ??????????????????????## [=% ### #?????????? | | ???????????????????????# ## ##= #???#?????? | | ??????????????????????## ##??## #####??? ?????? | | ??????????????????????# d #???## #??????? ?????? | | ?????????????????????## d ##???# #??????? ?????? | | ?????????????????????# #???# ###????# ?????? | | ?????????????????????? #???# #????# ?????? | | ????????????????????### ######## #????# ?????? | | ????????????????????# ##??# #????# #????? | | ????????????????????# ##?# #????# #????? | | ??????????????????### #?# ###### ##???? | | ??????????????????# @ #??# #???? | | ??????????????????# % #??##### ## #???? | | ??????????????????# #?????# ## #???? | | ?????????????????# #?????# ## #???? | | ?????????????????# #?????# ## ##### | | ?????????????????## ## ### #????# | | ??????????????????#### #?##?? #???#### | | ?????????????????????###??????? #?????# "" | | ???????????????????????????????? #????# "" | | ?????????????????????????????????## ????# "" | | ???????????????????????????????????? ????# | | ?????????????????????????????????????????? | | ?????????????????????????????????????????## | | ??????????????????????????????????????????######## | | ?????????????????????????????????????????????????? | | ?????????????????????????????????????????????????? | | ?????????????????????????????????????????????????? | | ?????????????????????????????????????????????????? | | ?????????????????????????????????????????????????? | | ?????????????????????????????????????????????????? | | ?????????????????????????????????????????????????? | | ?????????????????????????????????????????????????? | | ?????????????????????????????????????????????????? | | ?????????????????????????????????????????????????? | | | +----------------------------------------------------+ Best States ------------- Heat Dissipation 25 Energy Generation 10 Energy Capacity 250 Matter Stores 300 Matter Capacity 300 Sight Range 16 Terrain Scan Density 10 Core Shielding 20 Evasion (%) 42 Targeting Accuracy 5 Item Schematics ----------------- None Robot Schematics ------------------ None Fabricated ------------ Nothing Alien Tech Used ----------------- None Achievements -------------- None Challenges ------------ None Game ------ Seed AbsorptionDisposableDrive Manual? 0 Play Time 00:13:36 Cumulative 31.4 hours Start 2023.04.14 @ 19:37:44 End 2023.04.14 @ 19:50:21 Sessions 1 Manual Loads 0 Difficulty Rogue Special Mode None Game No. 30 Rogue 30 Adventurer 0 Explorer 0 Win Type - Total 0 Types 0/0/0/0/0/0/0/0/0 Lore% 20 Gallery% 37 Achievement% 32 Wizard Run 0 Options --------- ASCII 0 Keyboard 0 Movement Mouse Keybinds 0 Fullscreen 1 Font 18/SmallcapsGlow Map View 76x50 Tactical HUD 1 Map Filters NONE Filters NONE Steam 1 RUN: 4207aba7-5f86-4c2c-9ee6-ed9204c27144